[Event "27th OIBM 2024"]
[Site "Gmund am Tegernsee"]
[Date "2024.10.28"]
[Round "3.43"]
[White "Schramm, Christian"]
[Black "Delitzsch, Juergen"]
[Result "1-0"]
[ECO "A48"]
[WhiteElo "2361"]
[BlackElo "2147"]
[Annotator "RC"]
[PlyCount "147"]
[EventDate "2024.09.16"]
[EventType "swiss"]
[EventCountry "GER"]
[SourceTitle "playchess.com"]
[Source "ChessBase"]
[SourceQuality "1"]
[TimeControl "40/5400+30:1800+30"]

1. d4 {[%emt 0:00:02]} Nf6 {[%emt 0:00:07]} 2. Bf4 {[%emt 0:00:09]} g6 {[%emt 0:00:25]} 3. Nf3 {[%emt 0:00:58]} Bg7 {[%emt 0:00:14]} 4. e3 {[%emt 0:00:20]} d6 {[%emt 0:00:10]} 5. h3 {[%emt 0:00:10]} O-O {[%emt 0:00:13]} 6. Nbd2 {[%emt 0:01:07]} Nbd7 {[%emt 0:00:40]} 7. Bc4 {[%emt 0:00:47]} b6 {[%emt 0:01:37]} 8. Qe2 {[%emt 0:00:44]} Bb7 {[%emt 0:02:41]} 9. O-O {[%emt 0:00:41]} Qe8 {[%emt 0:01:47]} 10. Rfd1 {[%emt 0:05:13]} e5 {[%emt 0:00:38]} 11. dxe5 {[%emt 0:00:08]} dxe5 {[%emt 0:01:35]} 12. Bh2 {[%emt 0:00:09]} Qe7 {[%emt 0:06:29]} 13. Ba6 {[%emt 0:04:13]} Bxa6 {[%emt 0:11:04]} 14. Qxa6 {[%emt 0:02:16]} Nc5 {[%emt 0:05:02]} 15. Qa3 {[%emt 0:09:43]} Nfd7 {[%emt 0:06:00]} 16. Rab1 {[%emt 0:04:25]} a5 {[%emt 0:01:26]} 17. Ne4 {[%emt 0:00:30]} Rfe8 {[%emt 0:05:03]} 18. Nfd2 {[%emt 0:10:51]} Qe6 {[%emt 0:06:10]} 19. Nxc5 {[%emt 0:13:02]} Nxc5 {[%emt 0:00:59]} 20. Nb3 {[%emt 0:01:31]} Nxb3 {[%emt 0:12:05]} 21. Qxb3 {[%emt 0:02:38]} Qxb3 {[%emt 0:00:10]} 22. axb3 {[%emt 0:00:32]} Rad8 {[%emt 0:00:12]} 23. e4 {[%emt 0:01:56]} f6 {[%emt 0:02:33]} 24. Kf1 {[%emt 0:08:17]} Kf7 {[%emt 0:01:23]} 25. f3 {[%emt 0:01:33]} Bf8 {[%emt 0:07:34]} 26. Bg1 {[%emt 0:00:42]} Ke6 {[%emt 0:00:33]} 27. Ke2 {[%emt 0:00:54]} Be7 {[%emt 0:02:06]} 28. Be3 {[%emt 0:04:01]} Rxd1 {[%emt 0:03:31]} 29. Rxd1 {[%emt 0:00:21]} Rd8 {[%emt 0:00:06]} 30. Rh1 {[%emt 0:01:59]} h5 {[%emt 0:03:28]} 31. Ra1 {[%emt 0:02:49]} Bd6 {[%emt 0:06:03]} 32. Ra4 {[%emt 0:00:55]} Rd7 {[%emt 0:03:50]} 33. Ra1 {[%emt 0:07:29]} Rd8 {[%emt 0:00:51]} 34. Rf1 {[%emt 0:00:19]} h4 {[%emt 0:06:09]} 35. Bf2 {[%emt 0:06:07]} g5 {[%emt 0:00:10]} 36. Rd1 {[%emt 0:00:13]} Be7 {[%emt 0:01:15]} 37. Ra1 {[%emt 0:03:49]} Bd6 {[%emt 0:00:21]} 38. Ra4 {[%emt 0:00:42]} Rd7 {[%emt 0:00:09]} 39. Rc4 {[%emt 0:00:45]} Rd8 {[%emt 0:00:20]} 40. Rc3 {[%emt 0:02:04]} Rd7 {[%emt 0:01:29]} 41. Rc6 {[%emt 0:32:34]} Ke7 {[%emt 0:31:20]} 42. Be1 {[%emt 0:00:00]} Rd8 {[%emt 0:00:00]} 43. Rc4 {[%emt 0:00:00]} Rd7 {[%emt 0:00:00]} 44. Ra4 {[%emt 0:00:00]} Bc5 {[%emt 0:00:00]} 45. b4 {[%emt 0:00:00]} axb4 {[%emt 0:00:00]} 46. Bxb4 {[%emt 0:00:00]} Bxb4 {[%emt 0:00:00]} 47. Rxb4 {[%emt 0:00:00]} Rd6 {[%emt 0:00:00]} 48. Rc4 {[%emt 0:00:00]} Kd7 {[%emt 0:00:00]} 49. Ra4 {[%emt 0:00:00]} Kc6 {[%emt 0:00:00]} 50. Ra3 {[%emt 0:00:00]} Rd4 {[%emt 0:00:00]} 51. Ra8 {[%emt 0:00:00]} Rd6 {[%emt 0:00:00]} 52. Ra1 {[%emt 0:00:00]} Kc5 {[%emt 0:00:00]} 53. Ra3 {[%emt 0:00:00]} b5 {[%emt 0:00:00]} 54. Rc3+ {[%emt 0:00:00]} Kb6 {[%emt 0:00:00]} 55. Ra3 {[%emt 0:00:00]} Rc6 {[%emt 0:00:00]} 56. Kd2 {[%emt 0:00:00]} Rd6+ {[%emt 0:00:00]} 57. Rd3 {[%emt 0:00:00]} Rxd3+ {[%emt 0:00:07]} 58. Kxd3 {[%emt 0:00:02]} Kc5 {[%emt 0:00:45]} 59. Kc3 {[%emt 0:03:35]} c6 {[%emt 0:00:55]} 60. b4+ {[%emt 0:03:36]} Kd6 {[%emt 0:01:22]} 61. Kd3 {[%emt 0:00:14]} Ke6 {[%emt 0:01:58]} 62. Ke3 {[%emt 0:00:46]} Kf7 {[%emt 0:04:54]} 63. Kf2 {[%emt 0:00:19]} Kg6 {[%emt 0:00:16]} 64. g3 {[%emt 0:01:31]} Kh5 {[%emt 0:01:09]} 65. gxh4 {[%emt 0:01:08]} gxh4 {[%emt 0:00:17]} 66. Ke3 {[%emt 0:00:39]} Kg5 {[%emt 0:00:18]} 67. f4+ {[%emt 0:00:12]} Kg6 {[%emt 0:01:03]} 68. Kf3 {[%emt 0:00:25]} Kh5 {[%emt 0:01:32]} 69. c3 {[%emt 0:00:25]} Kg6 {[%emt 0:01:06]} 70. fxe5 {[%emt 0:00:26]} fxe5 {[%emt 0:00:05]} 71. Kg4 {[%emt 0:00:06]} Kf6 {[%emt 0:00:48]} 72. Kxh4 {[%emt 0:00:18]} Kg6 {[%emt 0:00:17]} 73. Kg4 {[%emt 0:00:06]} Kf6 {[%emt 0:00:14]} 74. Kh5 {[%emt 0:06:04]} 1-0

[Event "27th OIBM 2024"]
[Site "Gmund am Tegernsee"]
[Date "2024.10.28"]
[Round "3.44"]
[White "Southcott-Moyers, Indy"]
[Black "Frischmann, Rick"]
[Result "1/2-1/2"]
[ECO "E91"]
[WhiteElo "2143"]
[BlackElo "2355"]
[Annotator "RC"]
[PlyCount "94"]
[EventDate "2024.09.16"]
[EventType "swiss"]
[EventCountry "GER"]
[SourceTitle "playchess.com"]
[Source "ChessBase"]
[SourceQuality "1"]
[TimeControl "40/5400+30:1800+30"]

1. d4 {[%emt 0:00:02]} Nf6 {[%emt 0:00:08]} 2. c4 {[%emt 0:00:08]} c5 {[%emt 0:00:06]} 3. d5 {[%emt 0:01:52]} g6 {[%emt 0:00:09]} 4. Nc3 {[%emt 0:00:49]} Bg7 {[%emt 0:00:08]} 5. Nf3 {[%emt 0:06:57]} O-O {[%emt 0:00:11]} 6. e4 {[%emt 0:01:42]} d6 {[%emt 0:00:36]} 7. Be2 {[%emt 0:00:55]} e6 {[%emt 0:01:21]} 8. O-O {[%emt 0:02:21]} Re8 {[%emt 0:02:01]} 9. dxe6 {[%emt 0:11:59]} Rxe6 {[%emt 0:10:29]} 10. e5 {[%emt 0:11:19]} Ng4 {[%emt 0:05:34]} 11. Ng5 {[%emt 0:02:24]} Nxe5 {[%emt 0:00:07]} 12. f4 {[%emt 0:04:42]} Nec6 {[%emt 0:00:33]} 13. Nxe6 {[%emt 0:00:22]} fxe6 {[%emt 0:01:22]} 14. Be3 {[%emt 0:04:53]} Nd4 {[%emt 0:03:05]} 15. Bf3 {[%emt 0:04:34]} Qb6 {[%emt 0:12:24]} 16. Qd2 {[%emt 0:01:59]} Nbc6 {[%emt 0:01:51]} 17. Rad1 {[%emt 0:03:52]} Bd7 {[%emt 0:25:08]} 18. Be4 {[%emt 0:02:26]} Rd8 {[%emt 0:04:52]} 19. Ne2 {[%emt 0:04:27]} Nxe2+ {[%emt 0:01:32]} 20. Qxe2 {[%emt 0:02:55]} Nd4 {[%emt 0:00:06]} 21. Bxd4 {[%emt 0:01:57]} Bxd4+ {[%emt 0:00:16]} 22. Kh1 {[%emt 0:00:07]} Rf8 {[%emt 0:06:21]} 23. b3 {[%emt 0:04:29]} Rf6 {[%emt 0:00:19]} 24. Qf3 {[%emt 0:04:08]} Bc8 {[%emt 0:01:07]} 25. Qg3 {[%emt 0:01:27]} Qc7 {[%emt 0:01:05]} 26. b4 {[%emt 0:02:49]} b6 {[%emt 0:02:59]} 27. bxc5 {[%emt 0:01:59]} dxc5 {[%emt 0:03:20]} 28. Rde1 {[%emt 0:02:10]} Kg7 {[%emt 0:00:42]} 29. Qd3 {[%emt 0:01:35]} Bd7 {[%emt 0:01:30]} 30. Rd1 {[%emt 0:02:43]} a6 {[%emt 0:04:09]} 31. Qa3 {[%emt 0:02:30]} Rxf4 {[%emt 0:05:25]} 32. Rxf4 {[%emt 0:03:09]} Qxf4 {[%emt 0:00:04]} 33. Qd3 {[%emt 0:00:15]} b5 {[%emt 0:03:18]} 34. Rf1 {[%emt 0:00:57]} Qd6 {[%emt 0:00:04]} 35. Qf3 {[%emt 0:01:13]} Be8 {[%emt 0:00:05]} 36. Bd3 {[%emt 0:01:13]} Qe7 {[%emt 0:02:32]} 37. Qa8 {[%emt 0:00:44]} bxc4 {[%emt 0:01:11]} 38. Bxc4 {[%emt 0:00:25]} Bb5 {[%emt 0:00:03]} 39. Rb1 {[%emt 0:00:38]} Qf7 {[%emt 0:02:58]} 40. a4 {[%emt 0:01:20]} Qf5 {[%emt 0:00:40]} 41. Rf1 {[%emt 0:10:09]} Bxc4 {[%emt 0:00:16]} 42. Qb7+ {[%emt 0:01:38]} Kh6 {[%emt 0:03:17]} 43. Rxf5 {[%emt 0:00:07]} gxf5 {[%emt 0:00:08]} 44. Qe7 {[%emt 0:08:20]} Kg6 {[%emt 0:02:25]} 45. Qe8+ {[%emt 0:00:52]} Kg7 {[%emt 0:00:06]} 46. Qe7+ {[%emt 0:00:06]} Kg6 {[%emt 0:00:05]} 47. Qe8+ {[%emt 0:00:04]} Kg7 {[%emt 0:00:04]} 1/2-1/2

[Event "27th OIBM 2024"]
[Site "Gmund am Tegernsee"]
[Date "2024.10.28"]
[Round "3.45"]
[White "Womacka, Mathias"]
[Black "Turel, Tugrul"]
[Result "1-0"]
[ECO "C24"]
[WhiteElo "2345"]
[BlackElo "2135"]
[Annotator "RC"]
[PlyCount "63"]
[EventDate "2024.09.16"]
[EventType "swiss"]
[EventCountry "GER"]
[SourceTitle "playchess.com"]
[Source "ChessBase"]
[SourceQuality "1"]
[TimeControl "40/5400+30:1800+30"]

1. e4 {[%emt 0:00:03]} e5 {[%emt 0:00:05]} 2. Nf3 {[%emt 0:00:13]} Nc6 {[%emt 0:00:06]} 3. Bc4 {[%emt 0:00:09]} Bc5 {[%emt 0:00:10]} 4. O-O {[%emt 0:00:15]} Nf6 {[%emt 0:00:20]} 5. d3 {[%emt 0:00:11]} O-O {[%emt 0:01:14]} 6. h3 {[%emt 0:00:22]} d5 {[%emt 0:09:11]} 7. exd5 {[%emt 0:01:57]} Nxd5 {[%emt 0:00:05]} 8. Re1 {[%emt 0:00:09]} Re8 {[%emt 0:11:40]} 9. Ng5 {[%emt 0:07:10]} Be6 {[%emt 0:30:43]} 10. Nxe6 {[%emt 0:06:57]} Rxe6 {[%emt 0:00:30]} 11. Nd2 {[%emt 0:10:33]} Rg6 {[%emt 0:15:15]} 12. Ne4 {[%emt 0:08:10]} Bb6 {[%emt 0:00:10]} 13. c3 {[%emt 0:03:13]} Qd7 {[%emt 0:14:28]} 14. Qh5 {[%emt 0:02:36]} Nf6 {[%emt 0:03:24]} 15. Nxf6+ {[%emt 0:01:46]} Rxf6 {[%emt 0:00:13]} 16. Be3 {[%emt 0:00:06]} Re8 {[%emt 0:01:04]} 17. Bxb6 {[%emt 0:02:10]} axb6 {[%emt 0:00:02]} 18. Re3 {[%emt 0:00:15]} Rf5 {[%emt 0:01:53]} 19. Qh4 {[%emt 0:05:05]} Ne7 {[%emt 0:06:23]} 20. Rae1 {[%emt 0:03:23]} Ng6 {[%emt 0:01:04]} 21. Qg4 {[%emt 0:00:21]} Kh8 {[%emt 0:00:49]} 22. Rf3 {[%emt 0:01:54]} Ne7 {[%emt 0:00:00]} 23. Rxe5 {[%emt 0:04:58]} g6 {[%emt 0:01:46]} 24. Bxf7 {[%emt 0:03:57]} Rf8 {[%emt 0:00:25]} 25. Be6 {[%emt 0:00:47]} Qd6 {[%emt 0:00:01]} 26. Bxf5 {[%emt 0:00:22]} Qxe5 {[%emt 0:00:03]} 27. Be4 {[%emt 0:00:11]} Rxf3 {[%emt 0:01:42]} 28. Qxf3 {[%emt 0:00:26]} c6 {[%emt 0:00:44]} 29. Qf7 {[%emt 0:01:38]} Qg5 {[%emt 0:00:54]} 30. f4 {[%emt 0:03:51]} Qc5+ {[%emt 0:00:01]} 31. d4 {[%emt 0:00:09]} Qd6 {[%emt 0:00:47]} 32. Qf8+ {[%emt 0:33:13]} 1-0

[Event "27th OIBM 2024"]
[Site "Gmund am Tegernsee"]
[Date "2024.10.28"]
[Round "3.46"]
[White "Aumueller, Naum"]
[Black "Weber, Ulrich"]
[Result "*"]
[ECO "B51"]
[WhiteElo "2139"]
[BlackElo "2334"]
[Annotator "RC"]
[PlyCount "68"]
[EventDate "2024.09.16"]
[EventType "swiss"]
[EventCountry "GER"]
[SourceTitle "playchess.com"]
[Source "ChessBase"]
[SourceQuality "1"]
[TimeControl "40/5400+30:1800+30"]

1. e4 {[%emt 0:00:03]} c5 {[%emt 0:00:01]} 2. Nf3 {[%emt 0:00:06]} d6 {[%emt 0:00:05]} 3. Bb5+ {[%emt 0:00:04]} Nd7 {[%emt 0:00:13]} 4. a4 {[%emt 0:00:04]} Ngf6 {[%emt 0:00:10]} 5. Nc3 {[%emt 0:00:06]} a6 {[%emt 0:00:09]} 6. Be2 {[%emt 0:00:05]} b6 {[%emt 0:00:10]} 7. d4 {[%emt 0:01:25]} cxd4 {[%emt 0:00:15]} 8. Qxd4 {[%emt 0:00:28]} e6 {[%emt 0:02:06]} 9. O-O {[%emt 0:01:21]} Bb7 {[%emt 0:00:56]} 10. Nd2 {[%emt 0:03:25]} Qc7 {[%emt 0:39:58]} 11. Rd1 {[%emt 0:11:46]} d5 {[%emt 0:02:38]} 12. exd5 {[%emt 0:07:33]} Bc5 {[%emt 0:03:36]} 13. Qh4 {[%emt 0:02:51]} Nxd5 {[%emt 0:00:28]} 14. Nxd5 {[%emt 0:10:30]} Bxd5 {[%emt 0:00:18]} 15. c4 {[%emt 0:05:17]} Bc6 {[%emt 0:04:29]} 16. Ne4 {[%emt 0:15:24]} Be7 {[%emt 0:00:51]} 17. Bg5 {[%emt 0:05:23]} Bxg5 {[%emt 0:12:18]} 18. Nxg5 {[%emt 0:00:34]} Nf6 {[%emt 0:02:38]} 19. Bf3 {[%emt 0:02:02]} O-O {[%emt 0:01:17]} 20. Ne4 {[%emt 0:03:59]} Bxe4 {[%emt 0:03:26]} 21. Bxe4 {[%emt 0:00:08]} Rad8 {[%emt 0:01:47]} 22. b4 {[%emt 0:06:50]} h6 {[%emt 0:01:11]} 23. Bf3 {[%emt 0:02:38]} a5 {[%emt 0:01:11]} 24. Rdb1 {[%emt 0:09:10]} e5 {[%emt 0:07:46]} 25. bxa5 {[%emt 0:00:36]} bxa5 {[%emt 0:00:06]} 26. Rb5 {[%emt 0:00:52]} Rd4 {[%emt 0:00:28]} 27. Qg3 {[%emt 0:00:43]} Rxc4 {[%emt 0:02:19]} 28. Rxe5 {[%emt 0:01:49]} Rxa4 {[%emt 0:00:56]} 29. Ree1 {[%emt 0:01:01]} Rxa1 {[%emt 0:00:39]} 30. Rxa1 {[%emt 0:00:25]} Qc3 {[%emt 0:00:18]} 31. Rd1 {[%emt 0:00:55]} Re8 {[%emt 0:00:32]} 32. h3 {[%emt 0:00:50]} Re1+ {[%emt 0:04:28]} 33. Rxe1 {[%emt 0:00:02]} g6 {[%emt 0:01:41]} 34. Re8+ {[%emt 0:02:36]} Kg7 {[%emt 0:00:30]} *

[Event "27th OIBM 2024"]
[Site "Gmund am Tegernsee"]
[Date "2024.10.28"]
[Round "3.46"]
[White "Aumueller, Naum"]
[Black "Weber, Ulrich"]
[Result "1/2-1/2"]
[ECO "B51"]
[WhiteElo "2139"]
[BlackElo "2334"]
[Annotator "RC"]
[PlyCount "60"]
[EventDate "2024.09.16"]
[EventType "swiss"]
[EventCountry "GER"]
[SourceTitle "playchess.com"]
[Source "ChessBase"]
[SourceQuality "1"]
[TimeControl "40/5400+30:1800+30"]

1. e4 {[%emt 0:00:03]} c5 {[%emt 0:00:01]} 2. Nf3 {[%emt 0:00:06]} d6 {[%emt 0:00:05]} 3. Bb5+ {[%emt 0:00:04]} Nd7 {[%emt 0:00:13]} 4. a4 {[%emt 0:00:04]} Ngf6 {[%emt 0:00:10]} 5. Nc3 {[%emt 0:00:06]} a6 {[%emt 0:00:09]} 6. Be2 {[%emt 0:00:05]} b6 {[%emt 0:00:10]} 7. d4 {[%emt 0:01:25]} cxd4 {[%emt 0:00:15]} 8. Qxd4 {[%emt 0:00:28]} e6 {[%emt 0:02:06]} 9. O-O {[%emt 0:01:21]} Bb7 {[%emt 0:00:56]} 10. Nd2 {[%emt 0:03:25]} Qc7 {[%emt 0:39:58]} 11. Rd1 {[%emt 0:11:46]} d5 {[%emt 0:02:38]} 12. exd5 {[%emt 0:07:33]} Bc5 {[%emt 0:03:36]} 13. Qh4 {[%emt 0:02:51]} Nxd5 {[%emt 0:00:28]} 14. Nxd5 {[%emt 0:10:30]} Bxd5 {[%emt 0:00:18]} 15. c4 {[%emt 0:05:17]} Bc6 {[%emt 0:04:29]} 16. Ne4 {[%emt 0:15:24]} Be7 {[%emt 0:00:51]} 17. Bg5 {[%emt 0:05:23]} Bxg5 {[%emt 0:12:18]} 18. Nxg5 {[%emt 0:00:34]} Nf6 {[%emt 0:02:38]} 19. Bf3 {[%emt 0:02:02]} O-O {[%emt 0:01:17]} 20. Ne4 {[%emt 0:03:59]} Bxe4 {[%emt 0:03:26]} 21. Bxe4 {[%emt 0:00:08]} Rad8 {[%emt 0:01:47]} 22. b4 {[%emt 0:06:50]} h6 {[%emt 0:01:11]} 23. Bf3 {[%emt 0:02:38]} a5 {[%emt 0:01:11]} 24. Rdb1 {[%emt 0:09:10]} e5 {[%emt 0:07:46]} 25. bxa5 {[%emt 0:00:36]} bxa5 {[%emt 0:00:06]} 26. Rb5 {[%emt 0:00:52]} Rd4 {[%emt 0:00:28]} 27. Qg3 {[%emt 0:00:43]} Rxc4 {[%emt 0:02:19]} 28. Rxe5 {[%emt 0:01:49]} Rxa4 {[%emt 0:00:56]} 29. Rxa4 {[%emt 0:00:30]} Qc3 {[%emt 0:00:27]} 30. Ra1 {[%emt 0:01:21]} Re8 {[%emt 0:00:32]} 1/2-1/2

[Event "27th OIBM 2024"]
[Site "Gmund am Tegernsee"]
[Date "2024.10.28"]
[Round "3.47"]
[White "Zude, Arno"]
[Black "Fuhrmann, Bahne"]
[Result "1/2-1/2"]
[ECO "C54"]
[WhiteElo "2332"]
[BlackElo "2132"]
[Annotator "RC"]
[PlyCount "70"]
[EventDate "2024.09.16"]
[EventType "swiss"]
[EventCountry "GER"]
[SourceTitle "playchess.com"]
[Source "ChessBase"]
[SourceQuality "1"]
[TimeControl "40/5400+30:1800+30"]

1. e4 {[%emt 0:00:02]} e5 {[%emt 0:00:08]} 2. Nf3 {[%emt 0:00:11]} Nc6 {[%emt 0:00:11]} 3. Bc4 {[%emt 0:00:06]} Nf6 {[%emt 0:00:07]} 4. d3 {[%emt 0:00:07]} Bc5 {[%emt 0:00:06]} 5. c3 {[%emt 0:00:09]} d6 {[%emt 0:00:11]} 6. O-O {[%emt 0:00:15]} a5 {[%emt 0:00:10]} 7. Re1 {[%emt 0:00:36]} O-O {[%emt 0:00:13]} 8. h3 {[%emt 0:00:10]} h6 {[%emt 0:00:13]} 9. d4 {[%emt 0:00:39]} Ba7 {[%emt 0:21:36]} 10. Bb3 {[%emt 0:03:14]} Re8 {[%emt 0:00:30]} 11. Bc2 {[%emt 0:00:09]} d5 {[%emt 0:01:13]} 12. exd5 {[%emt 0:01:45]} Qxd5 {[%emt 0:00:17]} 13. Bb3 {[%emt 0:01:27]} Qd6 {[%emt 0:02:01]} 14. Na3 {[%emt 0:00:27]} exd4 {[%emt 0:01:24]} 15. Nb5 {[%emt 0:00:23]} Rxe1+ {[%emt 0:08:36]} 16. Qxe1 {[%emt 0:00:17]} Qd8 {[%emt 0:00:21]} 17. Bf4 {[%emt 0:01:50]} Bb6 {[%emt 0:00:32]} 18. cxd4 {[%emt 0:05:33]} a4 {[%emt 0:13:12]} 19. Bc4 {[%emt 0:00:26]} Na5 {[%emt 0:05:46]} 20. Bf1 {[%emt 0:10:03]} Be6 {[%emt 0:03:41]} 21. Nc3 {[%emt 0:02:23]} Nd5 {[%emt 0:04:17]} 22. Bg3 {[%emt 1:11:18]} Nc6 {[%emt 0:03:57]} 23. a3 {[%emt 0:00:00]} Nxd4 {[%emt 0:06:47]} 24. Nxd4 {[%emt 0:00:00]} Bxd4 {[%emt 0:00:05]} 25. Rd1 {[%emt 0:00:00]} Bf6 {[%emt 0:06:07]} 26. Nxd5 {[%emt 0:00:00]} Bxd5 {[%emt 0:00:06]} 27. Bxc7 {[%emt 0:00:00]} Qxc7 {[%emt 0:00:06]} 28. Rxd5 {[%emt 0:00:00]} Bxb2 {[%emt 0:03:18]} 29. Qb4 {[%emt 0:00:00]} Bc3 {[%emt 0:03:26]} 30. Qb5 {[%emt 0:00:00]} Qc6 {[%emt 0:02:12]} 31. Rd7 {[%emt 0:00:00]} Qxb5 {[%emt 0:03:05]} 32. Bxb5 {[%emt 0:00:00]} b6 {[%emt 0:00:30]} 33. Bc4 {[%emt 0:00:00]} Rf8 {[%emt 0:00:37]} 34. Ra7 {[%emt 0:00:00]} Bd4 {[%emt 0:00:52]} 35. Rxa4 {[%emt 0:00:00]} Bc5 {[%emt 0:00:13]} 1/2-1/2

[Event "27th OIBM 2024"]
[Site "Gmund am Tegernsee"]
[Date "2024.10.28"]
[Round "3.48"]
[White "Ehrke, Michael"]
[Black "Ernst, Robert"]
[Result "0-1"]
[ECO "D00"]
[WhiteElo "2123"]
[BlackElo "2319"]
[Annotator "RC"]
[PlyCount "60"]
[EventDate "2024.09.16"]
[EventType "swiss"]
[EventCountry "GER"]
[SourceTitle "playchess.com"]
[Source "ChessBase"]
[SourceQuality "1"]
[TimeControl "40/5400+30:1800+30"]

1. d4 {[%emt 0:00:07]} d5 {[%emt 0:00:13]} 2. Bf4 {[%emt 0:00:10]} Nf6 {[%emt 0:00:34]} 3. e3 {[%emt 0:00:22]} c5 {[%emt 0:00:20]} 4. c3 {[%emt 0:00:19]} Qb6 {[%emt 0:01:01]} 5. Qb3 {[%emt 0:00:14]} c4 {[%emt 0:00:22]} 6. Qc2 {[%emt 0:00:12]} g6 {[%emt 0:00:21]} 7. h3 {[%emt 0:01:26]} Bf5 {[%emt 0:01:18]} 8. Qc1 {[%emt 0:00:08]} Bg7 {[%emt 0:00:13]} 9. Nd2 {[%emt 0:01:09]} Nc6 {[%emt 0:00:22]} 10. b3 {[%emt 0:03:25]} cxb3 {[%emt 0:01:10]} 11. axb3 {[%emt 0:00:08]} O-O {[%emt 0:03:40]} 12. Ngf3 {[%emt 0:01:57]} Rfc8 {[%emt 0:01:45]} 13. Qb2 {[%emt 0:02:22]} Ne4 {[%emt 0:13:41]} 14. g4 {[%emt 0:21:45]} Bd7 {[%emt 0:18:51]} 15. Nxe4 {[%emt 0:19:11]} dxe4 {[%emt 0:00:03]} 16. Ne5 {[%emt 0:06:08]} Nxe5 {[%emt 0:00:27]} 17. Bxe5 {[%emt 0:06:07]} Bxe5 {[%emt 0:00:53]} 18. dxe5 {[%emt 0:00:07]} Qc5 {[%emt 0:03:50]} 19. Rd1 {[%emt 0:01:44]} Be6 {[%emt 0:02:16]} 20. Bg2 {[%emt 0:06:07]} Qxc3+ {[%emt 0:14:09]} 21. Qxc3 {[%emt 0:00:12]} Rxc3 {[%emt 0:00:02]} 22. O-O {[%emt 0:07:58]} Rxb3 {[%emt 0:00:36]} 23. Bxe4 {[%emt 0:00:12]} a5 {[%emt 0:00:21]} 24. Rb1 {[%emt 0:03:04]} Ra7 {[%emt 0:05:31]} 25. f4 {[%emt 0:02:34]} a4 {[%emt 0:06:20]} 26. f5 {[%emt 0:02:19]} Rxb1 {[%emt 0:00:17]} 27. Rxb1 {[%emt 0:00:12]} Bb3 {[%emt 0:00:02]} 28. f6 {[%emt 0:00:28]} exf6 {[%emt 0:00:08]} 29. exf6 {[%emt 0:00:22]} a3 {[%emt 0:00:16]} 30. Rxb3 {[%emt 0:00:12]} a2 {[%emt 0:00:07]} 0-1

[Event "27th OIBM 2024"]
[Site "Gmund am Tegernsee"]
[Date "2024.10.29"]
[Round "4.1"]
[White "Kollars, Dmitrij"]
[Black "Quparadze, Giga"]
[Result "1-0"]
[ECO "B42"]
[WhiteElo "2647"]
[BlackElo "2522"]
[Annotator "RC"]
[PlyCount "133"]
[EventDate "2024.09.16"]
[EventType "swiss"]
[EventCountry "GER"]
[SourceTitle "playchess.com"]
[Source "ChessBase"]
[SourceQuality "1"]
[TimeControl "40/5400+30:1800+30"]

1. e4 {[%emt 0:02:04]} c5 {[%emt 0:00:06]} 2. Nf3 {[%emt 0:00:08]} e6 {[%emt 0:00:05]} 3. d4 {[%emt 0:00:07]} cxd4 {[%emt 0:00:05]} 4. Nxd4 {[%emt 0:00:06]} a6 {[%emt 0:00:02]} 5. Bd3 {[%emt 0:00:38]} Nc6 {[%emt 0:00:07]} 6. Nxc6 {[%emt 0:00:27]} dxc6 {[%emt 0:00:05]} 7. Bf4 {[%emt 0:00:50]} Qf6 {[%emt 0:00:05]} 8. Be3 {[%emt 0:00:11]} e5 {[%emt 0:00:06]} 9. Nd2 {[%emt 0:00:55]} Be6 {[%emt 0:00:06]} 10. O-O {[%emt 0:01:43]} Bd6 {[%emt 0:01:12]} 11. Nc4 {[%emt 0:03:57]} Bc7 {[%emt 0:00:05]} 12. Qd2 {[%emt 0:02:37]} Bxc4 {[%emt 0:22:52]} 13. Bxc4 {[%emt 0:00:06]} Qe7 {[%emt 0:00:02]} 14. f3 {[%emt 0:13:14]} Nf6 {[%emt 0:00:07]} 15. a4 {[%emt 0:02:37]} Nd7 {[%emt 0:06:14]} 16. a5 {[%emt 0:02:54]} Bd6 {[%emt 0:00:36]} 17. Kh1 {[%emt 0:02:47]} Bc5 {[%emt 0:00:23]} 18. Bg5 {[%emt 0:02:50]} Nf6 {[%emt 0:00:31]} 19. c3 {[%emt 0:04:14]} h6 {[%emt 0:00:31]} 20. Bh4 {[%emt 0:00:34]} Rd8 {[%emt 0:00:33]} 21. Qe2 {[%emt 0:00:58]} g5 {[%emt 0:00:07]} 22. Be1 {[%emt 0:01:00]} Kf8 {[%emt 0:02:39]} 23. b4 {[%emt 0:05:00]} Ba7 {[%emt 0:02:42]} 24. Bd2 {[%emt 0:00:04]} Kg7 {[%emt 0:01:45]} 25. Rae1 {[%emt 0:02:16]} Nh5 {[%emt 0:01:29]} 26. g3 {[%emt 0:04:47]} Qd7 {[%emt 0:00:09]} 27. Bc1 {[%emt 0:00:28]} Qh3 {[%emt 0:00:05]} 28. Qg2 {[%emt 0:00:05]} Qxg2+ {[%emt 0:00:08]} 29. Kxg2 {[%emt 0:00:04]} Rd7 {[%emt 1:02:03]} 30. h4 Kg6 {[%emt 0:00:00]} 31. hxg5 {[%emt 0:24:08]} hxg5 {[%emt 0:00:00]} 32. Rd1 {[%emt 0:01:57]} Rhd8 {[%emt 0:00:00]} 33. Be2 {[%emt 0:01:23]} Rxd1 {[%emt 0:00:00]} 34. Rxd1 {[%emt 0:00:05]} Rxd1 {[%emt 0:00:00]} 35. Bxd1 {[%emt 0:00:03]} Nf6 {[%emt 0:00:00]} 36. Bc2 {[%emt 0:01:18]} Nh5 {[%emt 0:00:00]} 37. Bd2 {[%emt 0:00:16]} Nf6 {[%emt 0:00:00]} 38. Bd3 {[%emt 0:02:45]} Nh5 {[%emt 0:00:00]} 39. Bf1 {[%emt 0:10:06]} Nf6 {[%emt 0:00:00]} 40. Kh2 {[%emt 0:02:43]} g4 {[%emt 0:00:00]} 41. Kg2 {[%emt 0:30:39]} Kg7 {[%emt 0:00:00]} 42. Bd3 {[%emt 0:02:08]} gxf3+ {[%emt 0:00:00]} 43. Kxf3 {[%emt 0:00:03]} Ne8 {[%emt 0:00:00]} 44. Bf1 {[%emt 0:04:15]} Nd6 {[%emt 0:00:00]} 45. c4 {[%emt 0:00:00]} Bd4 {[%emt 0:00:00]} 46. c5 {[%emt 0:00:00]} Nc8 {[%emt 0:00:00]} 47. Bh3 {[%emt 0:00:00]} Ne7 {[%emt 0:00:00]} 48. Bg5 {[%emt 0:00:00]} Kf8 {[%emt 0:00:00]} 49. Bd2 {[%emt 0:00:00]} Kg7 {[%emt 0:00:00]} 50. Ke2 {[%emt 0:00:00]} Kg6 {[%emt 0:00:00]} 51. Bd7 {[%emt 0:00:00]} Kf6 {[%emt 0:00:00]} 52. Kd3 {[%emt 0:00:00]} Bf2 {[%emt 0:00:00]} 53. Bh6 {[%emt 0:00:00]} Bxg3 {[%emt 0:00:00]} 54. Bf8 {[%emt 0:00:00]} Be1 {[%emt 0:00:00]} 55. Kc4 {[%emt 0:00:00]} Bh4 {[%emt 0:43:00]} 56. Kb3 {[%emt 0:00:00]} Bg3 {[%emt 0:00:00]} 57. Bxe7+ {[%emt 0:00:00]} Kxe7 {[%emt 0:00:00]} 58. Bc8 {[%emt 0:00:00]} f5 {[%emt 0:00:00]} 59. exf5 {[%emt 0:00:00]} Kf6 {[%emt 0:00:00]} 60. Bxb7 {[%emt 0:00:00]} e4 {[%emt 0:00:00]} 61. Bxc6 {[%emt 0:00:00]} e3 {[%emt 0:00:00]} 62. Bf3 {[%emt 0:00:00]} Kxf5 {[%emt 0:00:00]} 63. Be2 {[%emt 0:00:00]} Ke4 {[%emt 0:00:00]} 64. Bxa6 {[%emt 0:00:00]} Kd4 {[%emt 0:00:00]} 65. Be2 {[%emt 0:00:00]} Bb8 {[%emt 0:00:00]} 66. a6 {[%emt 0:00:00]} Kd5 {[%emt 0:00:00]} 67. Bf3+ {[%emt 0:00:00]} 1-0